fUSD/lending_fUSD_20260529
["ID","MTS","AMOUNT","RATE_DAILY","PERIOD"]
[423258554,1779999767000,-3127.8230251,0.00041,120]
[423258555,1779999767000,-823.472598,0.00041,30]
[423258552,1779999767000,-236.211952,0.00041,30]
[423258550,1779999767000,-719.725494,0.00041,30]
[423258551,1779999767000,-290.024128,0.00041,30]
[423258549,1779999767000,-151.0,0.00041,30]
[423258566,1779999767000,-2813.942987,0.00041,30]
[423258556,1779999767000,-823.472598,0.00041,30]
[423258565,1779999767000,-221.638876,0.00041,30]
[423258568,1779999767000,-2813.942987,0.00041,30]
[423258567,1779999767000,-1209.394621,0.00041,30]
[423258585,1779999767000,-163.34455,0.00041,30]
[423258584,1779999767000,-2589.797307,0.00041,30]
[423258583,1779999767000,-2940.298421,0.00041,30]
[423258582,1779999767000,-163.34455,0.00041,30]
[423258581,1779999767000,-6484.072777,0.00041,30]
[423258578,1779999767000,-6484.072777,0.00041,30]
[423258579,1779999767000,-2940.298421,0.00041,30]
[423258577,1779999767000,-163.34455,0.00041,30]
[423258580,1779999767000,-163.34455,0.00041,30]
[423258574,1779999767000,-5057.359532,0.00041,30]
[423258575,1779999767000,-6484.072777,0.00041,30]
[423258573,1779999767000,-5057.359532,0.00041,30]
[423258572,1779999767000,-5057.359532,0.00041,30]
[423258570,1779999767000,-2813.942987,0.00041,30]
[423258571,1779999767000,-5057.359532,0.00041,30]
[423258569,1779999767000,-1209.394621,0.00041,30]
[423258576,1779999767000,-6484.072777,0.00041,30]
[423258596,1779999768000,-3163.195878,0.00041,30]
[423258602,1779999768000,-2257.783421,0.00041,30]
[423258601,1779999768000,-500.0,0.00041,60]
[423258599,1779999768000,-3163.195878,0.00041,30]
[423258600,1779999768000,-2257.783421,0.00041,30]
[423258597,1779999768000,-3163.195878,0.00041,30]
[423258598,1779999768000,-3163.195878,0.00041,30]
[423258595,1779999768000,-151.0,0.00041,30]
[423258586,1779999768000,-2940.298421,0.00041,30]
[423258593,1779999768000,-158.837251,0.00041,30]
[423258592,1779999768000,-158.837251,0.00041,30]
[423258590,1779999768000,-158.837251,0.00041,30]
[423258591,1779999768000,-2589.797307,0.00041,30]
[423258589,1779999768000,-2589.797307,0.00041,30]
[423258587,1779999768000,-2589.797307,0.00041,30]
[423258588,1779999768000,-2940.298421,0.00041,30]
[423258605,1779999768000,-2559.63913794,0.00041,120]
[423258594,1779999768000,-158.837251,0.00041,30]
[423258604,1779999768000,-2257.783421,0.00041,30]
[423258623,1779999768000,-253.0,0.00041096,120]
[423258607,1779999768000,-3140.005631,0.00041,30]
[423258603,1779999768000,-2257.783421,0.00041,30]
[423258624,1779999768000,-50000.0,0.00041096,35]
[423258619,1779999768000,-287.52989891,0.0004109,120]
[423258621,1779999768000,-500.0,0.00041095,30]
[423258622,1779999768000,-500.0,0.00041095,30]
[423258618,1779999768000,-1455.6,0.00041041,120]
[423258617,1779999768000,-2692.60388,0.00041,30]
[423258616,1779999768000,-2465.0,0.00041,120]
[423258620,1779999768000,-317.74478148,0.0004109,120]
[423258614,1779999768000,-835.527152,0.00041,30]
[423258615,1779999768000,-835.527152,0.00041,30]
[423258608,1779999768000,-293382.0,0.00041,120]
[423258606,1779999768000,-442.76169341,0.00041,120]
[423258611,1779999768000,-3140.005631,0.00041,30]
[423258609,1779999768000,-3140.005631,0.00041,30]
[423258612,1779999768000,-835.527152,0.00041,30]
[423258613,1779999768000,-3140.005631,0.00041,30]
[423258610,1779999768000,-835.527152,0.00041,30]
[423258636,1779999769000,-151.0,0.0004115,120]
[423258639,1779999769000,-151.0,0.0004115,120]
[423258641,1779999769000,-295.860613,0.0004115,120]
[423258640,1779999769000,-151.0,0.0004115,120]
[423258637,1779999769000,-151.0,0.0004115,120]
[423258638,1779999769000,-242.861842,0.0004115,120]
[423258635,1779999769000,-151.0,0.0004115,120]
[423258634,1779999769000,-151.0,0.0004115,120]
[423258625,1779999769000,-3000.0,0.00041096,120]
[423258631,1779999769000,-157.59333333,0.00041096,120]
[423258632,1779999769000,-152.0,0.000411,120]
[423258630,1779999769000,-157.59999999,0.00041096,60]
[423258628,1779999769000,-151.0,0.00041096,120]
[423258629,1779999769000,-150.0,0.00041096,60]
[423258627,1779999769000,-281.0,0.00041096,120]
[423258626,1779999769000,-3637.0,0.00041096,120]
[423258633,1779999769000,-581.83086933,0.00041111,120]
[423258643,1779999769000,-151.0,0.0004115,120]
[423258647,1779999769000,-151.0,0.0004115,120]
[423258644,1779999769000,-209.909389,0.0004115,120]
[423258642,1779999769000,-151.0,0.0004115,120]
[423258661,1779999769000,-806.154465,0.0004115,31]
[423258662,1779999769000,-806.154465,0.0004115,31]
[423258660,1779999769000,-151.0,0.0004115,120]
[423258659,1779999769000,-806.154465,0.0004115,31]
[423258657,1779999769000,-806.154465,0.0004115,31]
[423258654,1779999769000,-209.909389,0.0004115,120]
[423258656,1779999769000,-151.0,0.0004115,120]
[423258658,1779999769000,-151.0,0.0004115,120]
[423258653,1779999769000,-151.0,0.0004115,120]
[423258652,1779999769000,-295.860613,0.0004115,120]
[423258651,1779999769000,-209.909389,0.0004115,120]
[423258650,1779999769000,-151.0,0.0004115,120]
[423258649,1779999769000,-295.860613,0.0004115,120]
[423258648,1779999769000,-209.909389,0.0004115,120]
[423258646,1779999769000,-151.0,0.0004115,120]
[423258645,1779999769000,-295.860613,0.0004115,120]
[423258655,1779999769000,-151.0,0.0004115,120]
[423258671,1779999770000,-784.56,0.000412,120]
[423258668,1779999770000,-750.0,0.0004115,120]
[423258669,1779999770000,-450.0,0.0004115,120]
[423258667,1779999770000,-163.75966911,0.0004115,120]
[423258664,1779999770000,-312.629572,0.0004115,120]
[423258665,1779999770000,-312.629572,0.0004115,120]
[423258663,1779999770000,-312.629572,0.0004115,120]
[423258670,1779999770000,-576.90991943,0.00041154,120]
[423258666,1779999770000,-312.629572,0.0004115,120]
[423258673,1779999770000,-151.0,0.000412,120]
[423258677,1779999770000,-596.302988,0.000412,120]
[423258675,1779999770000,-151.0,0.000412,120]
[423258674,1779999770000,-151.0,0.000412,120]
[423258676,1779999770000,-151.0,0.000412,120]
[423258678,1779999770000,-151.0,0.000412,120]
[423258679,1779999770000,-596.302988,0.000412,120]
[423258680,1779999770000,-596.302988,0.000412,120]
[423258681,1779999770000,-596.302988,0.000412,120]
[423258682,1779999770000,-30202.0,0.000412,30]
[423258672,1779999770000,-215.50460005,0.000412,30]
[423258683,1779999770000,-150.0,0.00041232,30]
[423258689,1779999771000,-1000.0,0.00041233,120]
[423258691,1779999771000,-1000.0,0.00041233,120]
[423258688,1779999771000,-1000.0,0.00041233,120]
[423258684,1779999771000,-1000.0,0.00041233,120]
[423258687,1779999771000,-1000.0,0.00041233,120]
[423258685,1779999771000,-1000.0,0.00041233,120]
[423258692,1779999771000,-1000.0,0.00041233,120]
[423258686,1779999771000,-1000.0,0.00041233,120]
[423258693,1779999771000,-1000.0,0.00041233,120]
[423258690,1779999771000,-1000.0,0.00041233,120]
[423258695,1779999771000,-3574.61787774,0.00041337,60]
[423258696,1779999771000,-576.90991943,0.00041348,120]
[423258698,1779999771000,-500.0,0.00041369,40]
[423258697,1779999771000,-317.74478148,0.00041364,120]
[423258699,1779999771000,-376.320169,0.000414,56]
[423258701,1779999771000,-2000.0,0.00041406,120]
[423258702,1779999771000,-1200.0,0.000415,120]
[423258700,1779999771000,-576.90991943,0.00041403,120]
[423258703,1779999771000,-9523.90317991,0.000415,120]
[423258704,1779999771000,-2099914.10535226,0.000415,120]
[423258694,1779999771000,-852.420433,0.00041233,120]
[423258705,1779999772000,2189.14605986,0.0002,120]
[423258706,1779999788000,-159.04,0.00025115,30]
[423258708,1779999788000,-677.55,0.0002782,30]
[423258709,1779999788000,-1947.73,0.00027953,30]
[423258707,1779999788000,-160.04,0.00026676,30]
[423258710,1779999789000,-1188.22,0.00028062,30]
[423258711,1779999789000,-2479.57,0.00028192,30]
[423258713,1779999789000,-160.04,0.00029704,30]
[423258712,1779999789000,-1188.22,0.00028531,30]
[423258714,1779999789000,-152.41,0.00030085,30]
[423258715,1779999789000,-677.55,0.00033158,30]
[423258716,1779999789000,-1947.73,0.00033247,30]
[423258718,1779999789000,-388.8,0.000337,30]
[423258717,1779999789000,-152.41,0.00033476,30]
[423258719,1779999789000,-388.8,0.000348,30]
[423258723,1779999789000,-152.41,0.00036868,30]
[423258720,1779999789000,-152.0,0.00035182,120]
[423258722,1779999789000,-388.8,0.000361,30]
[423258721,1779999789000,-157.86449604,0.00035616,60]
[423258734,1779999789000,-2692.60388,0.00039533,30]
[423258733,1779999789000,-2692.60388,0.00039533,30]
[423258730,1779999789000,-2692.60388,0.00039533,30]
[423258731,1779999789000,-2692.60388,0.00039533,30]
[423258732,1779999789000,-2692.60388,0.00039533,30]
[423258728,1779999789000,-500.0,0.00039356,60]
[423258726,1779999789000,-151.0,0.000388,120]
[423258725,1779999789000,-151.0,0.00038,120]
[423258724,1779999789000,-399999.999999,0.00037,30]
[423258727,1779999789000,-338416.13864847,0.0003932,30]
[423258729,1779999789000,-11321.05644577,0.000395,30]
[423258743,1779999790000,-152.41,0.00040259,30]
[423258750,1779999790000,-2692.60388,0.00041,30]
[423258749,1779999790000,-416.77315669,0.00041,120]
[423258748,1779999790000,-2692.60388,0.00041,30]
[423258747,1779999790000,-203.21712912,0.00041,120]
[423258746,1779999790000,-2692.60388,0.00041,30]
[423258745,1779999790000,-1326.8312315,0.000408,60]
[423258744,1779999790000,-151.0,0.000405,120]
[423258737,1779999790000,-151.0,0.00039533,30]
[423258741,1779999790000,-354.16,0.0004,120]
[423258740,1779999790000,-823.56436802,0.0004,30]
[423258739,1779999790000,-451712.46520855,0.00039999,30]
[423258736,1779999790000,-151.0,0.00039533,30]
[423258752,1779999790000,-157.86,0.00041096,60]
[423258738,1779999790000,-151.0,0.000397,120]
[423258735,1779999790000,-2692.60388,0.00039533,30]
[423258742,1779999790000,-388.8,0.0004,30]
[423258754,1779999790000,-1030.0,0.00041231,30]
[423258770,1779999790000,-1536.04360648,0.00041231,30]
[423258753,1779999790000,-157.85949606,0.00041096,120]
[423258771,1779999790000,-1592.87721992,0.00041231,30]
[423258772,1779999790000,-3000.0,0.00041399,56]
[423258769,1779999790000,-1481.2378076,0.00041231,30]
[423258768,1779999790000,-1734.62772924,0.00041231,30]
[423258767,1779999790000,-1428.38747117,0.00041231,30]
[423258766,1779999790000,-1377.42282658,0.00041231,30]
[423258765,1779999790000,-1672.7364795,0.00041231,30]
[423258763,1779999790000,-1280.88388877,0.00041231,30]
[423258751,1779999790000,-500.0,0.00041,60]
[423258761,1779999790000,-1235.18214925,0.00041231,30]
[423258762,1779999790000,-1613.0535,0.00041231,30]
[423258759,1779999790000,-1555.5,0.00041231,30]
[423258760,1779999790000,-1191.11104074,0.00041231,30]
[423258758,1779999790000,-1148.61238259,0.00041231,30]
[423258755,1779999790000,-1068.11,0.00041231,30]
[423258756,1779999790000,-1500.0,0.00041231,30]
[423258757,1779999790000,-1107.63007,0.00041231,30]
[423258764,1779999790000,-1328.27659266,0.00041231,30]
[423258783,1779999791000,-165.92,0.00041399,56]
[423258785,1779999791000,-172.05904,0.00041399,56]
[423258789,1779999791000,-198.97225456,0.00041399,56]
[423258788,1779999791000,-191.87295522,0.00041399,56]
[423258787,1779999791000,-185.02695778,0.00041399,56]
[423258784,1779999791000,-312.85516478,0.00041399,56]
[423258786,1779999791000,-178.42522448,0.00041399,56]
[423258782,1779999791000,-4160.35185778,0.00041399,56]
[423258775,1779999791000,-3345.472959,0.00041399,56]
[423258780,1779999791000,-4011.9111454,0.00041399,56]
[423258781,1779999791000,-160.0,0.00041399,56]
[423258778,1779999791000,-3730.72977313,0.00041399,56]
[423258776,1779999791000,-3469.25545848,0.00041399,56]
[423258777,1779999791000,-3597.61791044,0.00041399,56]
[423258774,1779999791000,-3226.107,0.00041399,56]
[423258773,1779999791000,-3111.0,0.00041399,56]
[423258790,1779999791000,-206.33422798,0.00041399,56]
[423258779,1779999791000,-3868.76677473,0.00041399,56]
[423258791,1779999791000,-213.96859442,0.00041399,56]
[423258793,1779999791000,-151.0,0.000414,120]
[423258794,1779999791000,-151.0,0.00041499,120]
[423258811,1779999791000,-3000.0,0.00041499,120]
[423258809,1779999791000,-260.28700001,0.00041499,120]
[423258808,1779999791000,-576.0788265,0.00041499,120]
[423258806,1779999791000,-151.0,0.00041499,120]
[423258807,1779999791000,-151.0,0.00041499,120]
[423258805,1779999791000,-500.0,0.00041499,120]
[423258803,1779999791000,-151.0,0.00041499,120]
[423258804,1779999791000,-151.0,0.00041499,120]
[423258810,1779999791000,-151.0,0.00041499,120]
[423258802,1779999791000,-151.0,0.00041499,120]
[423258799,1779999791000,-1000.0,0.00041499,120]
[423258800,1779999791000,-156.587,0.00041499,120]
[423258798,1779999791000,-151.0,0.00041499,120]
[423258797,1779999791000,-151.0,0.00041499,120]
[423258795,1779999791000,-151.0,0.00041499,120]
[423258796,1779999791000,-1000.0,0.00041499,120]
[423258792,1779999791000,-176.29000003,0.00041399,56]
[423258801,1779999791000,-198.46890711,0.00041499,120]
[423258822,1779999792000,-151.0,0.00041499,120]
[423258824,1779999792000,-518.5,0.00041499,120]
[423258826,1779999792000,-500.0,0.00041499,120]
[423258825,1779999792000,-500.0,0.00041499,120]
[423258827,1779999792000,-152.0,0.00041499,120]
[423258821,1779999792000,-3025.0466733,0.00041499,120]
[423258823,1779999792000,-151.0,0.00041499,120]
[423258817,1779999792000,-500.0,0.00041499,120]
[423258816,1779999792000,-173.97580563,0.00041499,120]
[423258820,1779999792000,-500.0,0.00041499,120]
[423258818,1779999792000,-152.0,0.00041499,120]
[423258814,1779999792000,-151.0,0.00041499,120]
[423258815,1779999792000,-151.0,0.00041499,120]
[423258813,1779999792000,-4017.00202636,0.00041499,120]
[423258812,1779999792000,-173.97580562,0.00041499,120]
[423258828,1779999792000,-151.0,0.00041499,120]
[423258819,1779999792000,-151.0,0.00041499,120]
[423258829,1779999792000,-151.0,0.00041499,120]
[423258841,1779999792000,-290.73579725,0.00041499,120]
[423258831,1779999792000,-151.0,0.00041499,120]
[423258845,1779999792000,-557.5788265,0.00041499,120]
[423258847,1779999792000,-537.6845,0.00041499,120]
[423258846,1779999792000,-151.0,0.00041499,120]
[423258830,1779999792000,-500.0,0.00041499,120]
[423258842,1779999792000,-500.0,0.00041499,120]
[423258843,1779999792000,-500.0,0.00041499,120]
[423258848,1779999792000,-152.0,0.00041499,120]
[423258840,1779999792000,-151.0,0.00041499,120]
[423258844,1779999792000,-500.0,0.00041499,120]
[423258837,1779999792000,-152.0,0.00041499,120]
[423258838,1779999792000,-151.0,0.00041499,120]
[423258835,1779999792000,-518.5,0.00041499,120]
[423258836,1779999792000,-520.0,0.00041499,120]
[423258833,1779999792000,-151.0,0.00041499,120]
[423258834,1779999792000,-500.0,0.00041499,120]
[423258832,1779999792000,-537.6845,0.00041499,120]
[423258839,1779999792000,-151.0,0.00041499,120]
[423258855,1779999793000,-578.20924308,0.00041499,120]
[423258856,1779999793000,-557.5788265,0.00041499,120]
[423258853,1779999793000,-500.0,0.00041499,120]
[423258849,1779999793000,-151.0,0.00041499,120]
[423258851,1779999793000,-151.0,0.00041499,120]
[423258852,1779999793000,-152.00897998,0.00041499,120]
[423258850,1779999793000,-539.24,0.00041499,120]
[423258854,1779999793000,-500.0,0.00041499,120]
[423258858,1779999793000,-152.0,0.00041499,120]
[423258859,1779999793000,-151.0,0.00041499,120]
[423258860,1779999793000,-559.19188,0.00041499,120]
[423258861,1779999793000,-500.0,0.00041499,120]
[423258862,1779999793000,-500.0,0.00041499,120]
[423258864,1779999793000,-599.60298507,0.00041499,120]
[423258863,1779999793000,-578.20924308,0.00041499,120]
[423258865,1779999793000,-152.0,0.00041499,120]
[423258866,1779999793000,-151.0,0.00041499,120]
[423258867,1779999793000,-2900085.89464774,0.000415,120]
[423258868,1779999793000,-4760342.57336434,0.000415,120]
[423258857,1779999793000,-151.0,0.00041499,120]
[423258869,1779999795000,-934.15,0.00027816,30]
[423258882,1779999796000,-1776.30922209,0.00041231,30]
[423258879,1779999796000,-1651.81367706,0.00041231,30]
[423258878,1779999796000,-162.276858,0.00039533,30]
[423258876,1779999796000,-162.276858,0.00039533,30]
[423258877,1779999796000,-162.276858,0.00039533,30]
[423258870,1779999796000,-1640.15,0.00027949,30]
[423258873,1779999796000,-934.15,0.00028605,30]
[423258874,1779999796000,-491.395324,0.00039532,34]
[423258872,1779999796000,-1640.15,0.00028299,30]
[423258871,1779999796000,-934.15,0.0002821,30]
[423258880,1779999796000,-1798.80895522,0.00041231,30]
[423258875,1779999796000,-162.276858,0.00039533,30]
[423258883,1779999796000,-1865.36488656,0.00041231,30]
[423258894,1779999796000,-2405.55389863,0.00041231,30]
[423258885,1779999796000,-1910.18787185,0.00041231,30]
[423258881,1779999796000,-1712.93078311,0.00041231,30]
[423258893,1779999796000,-2319.72410669,0.00041231,30]
[423258896,1779999796000,-2586.85809042,0.00041231,30]
[423258892,1779999796000,-2236.95670847,0.00041231,30]
[423258889,1779999796000,-2054.15682156,0.00041231,30]
[423258895,1779999796000,-2494.55939288,0.00041231,30]
[423258890,1779999796000,-2080.17592889,0.00041231,30]
[423258888,1779999796000,-2005.9555727,0.00041231,30]
[423258884,1779999796000,-1842.0326633,0.00041231,30]
[423258886,1779999796000,-1934.38338736,0.00041231,30]
[423258887,1779999796000,-1980.8648231,0.00041231,30]
[423258891,1779999796000,-2157.14243826,0.00041231,30]
[423258905,1779999797000,-151.0,0.00041499,120]
[423258913,1779999797000,-151.0,0.00041499,120]
[423258911,1779999797000,-152.0,0.00041499,120]
[423258908,1779999797000,-500.0,0.00041499,120]
[423258910,1779999797000,-644.79446245,0.00041499,120]
[423258909,1779999797000,-500.0,0.00041499,120]
[423258907,1779999797000,-601.3376128,0.00041499,120]
[423258906,1779999797000,-151.0,0.00041499,120]
[423258899,1779999797000,-579.88197956,0.00041499,120]
[423258902,1779999797000,-500.0,0.00041499,120]
[423258900,1779999797000,-500.0,0.00041499,120]
[423258903,1779999797000,-621.78829552,0.00041499,120]
[423258901,1779999797000,-542.19794877,0.00041499,120]
[423258912,1779999797000,-151.0,0.00041499,120]
[423258897,1779999797000,-2682.57183977,0.00041231,30]
[423258898,1779999797000,-1000.0,0.00041292,120]
[423258904,1779999797000,-152.0,0.00041499,120]
[423258918,1779999797000,-668.65185756,0.00041499,120]
[423258914,1779999797000,-623.58710447,0.00041499,120]
[423258915,1779999797000,-500.0,0.00041499,120]
[423258934,1779999797000,-151.0,0.00041499,120]
[423258917,1779999797000,-151.0,0.00041499,120]
[423258932,1779999797000,-152.0,0.00041499,120]
[423258933,1779999797000,-500.0,0.00041499,120]
[423258931,1779999797000,-355.66963125,0.00041499,120]
[423258930,1779999797000,-500.0,0.00041499,120]
[423258929,1779999797000,-151.0,0.00041499,120]
[423258928,1779999797000,-152.0,0.00041499,120]
[423258926,1779999797000,-151.0,0.00041499,120]
[423258927,1779999797000,-693.39197629,0.00041499,120]
[423258923,1779999797000,-151.0,0.00041499,120]
[423258924,1779999797000,-500.0,0.00041499,120]
[423258920,1779999797000,-151.34115252,0.00041499,120]
[423258922,1779999797000,-152.0,0.00041499,120]
[423258921,1779999797000,-500.0,0.00041499,120]
[423258919,1779999797000,-289.00262903,0.00041499,120]
[423258916,1779999797000,-152.0,0.00041499,120]
[423258925,1779999797000,-152.0,0.00041499,120]
[423258944,1779999798000,-365.6223847,0.00041499,120]
[423258952,1779999798000,-5000000.0,0.000415,120]
[423258951,1779999798000,-239657.42663566,0.000415,120]
[423258947,1779999798000,-151.0,0.00041499,120]
[423258948,1779999798000,-152.0,0.00041499,120]
[423258946,1779999798000,-152.0,0.00041499,120]
[423258945,1779999798000,-151.0,0.00041499,120]
[423258942,1779999798000,-152.0,0.00041499,120]
[423258936,1779999798000,-152.0,0.00041499,120]
[423258939,1779999798000,-500.0,0.00041499,120]
[423258940,1779999798000,-151.0,0.00041499,120]
[423258941,1779999798000,-500.0,0.00041499,120]
[423258938,1779999798000,-152.0,0.00041499,120]
[423258935,1779999798000,-151.0,0.00041499,120]
[423258937,1779999798000,-500.0,0.00041499,120]
[423258950,1779999798000,-152.0,0.00041499,120]
[423258943,1779999798000,-151.0,0.00041499,120]
[423258949,1779999798000,-151.0,0.00041499,120]
[423258968,1779999798000,-776.652099,0.000415,30]
[423258953,1779999798000,-1637.996,0.000415,120]
[423258955,1779999798000,-1637.99,0.000415,120]
[423258972,1779999798000,-151.0,0.000415,120]
[423258971,1779999798000,-151.0,0.000415,120]
[423258970,1779999798000,-151.0,0.000415,120]
[423258969,1779999798000,-151.0,0.000415,120]
[423258967,1779999798000,-776.652099,0.000415,30]
[423258965,1779999798000,-776.652099,0.000415,30]
[423258966,1779999798000,-795.9586,0.000415,120]
[423258964,1779999798000,-795.9586,0.000415,120]
[423258961,1779999798000,-795.9586,0.000415,120]
[423258963,1779999798000,-776.652099,0.000415,30]
[423258958,1779999798000,-2797.766195,0.000415,120]
[423258956,1779999798000,-177.24815357,0.000415,30]
[423258959,1779999798000,-2797.766195,0.000415,120]
[423258954,1779999798000,-1637.996,0.000415,120]
[423258962,1779999798000,-795.9586,0.000415,120]
[423258960,1779999798000,-2797.766195,0.000415,120]
[423258957,1779999798000,-2797.766195,0.000415,120]
[423258983,1779999799000,-217.575412,0.000415,120]
[423258990,1779999799000,-151.0,0.000415,120]
[423258989,1779999799000,-151.0,0.000415,120]
[423258986,1779999799000,-185.130712,0.000415,120]
[423258985,1779999799000,-217.575412,0.000415,120]
[423258987,1779999799000,-217.575412,0.000415,120]
[423258984,1779999799000,-185.130712,0.000415,120]
[423258981,1779999799000,-151.0,0.000415,120]
[423258988,1779999799000,-151.0,0.000415,120]
[423258980,1779999799000,-217.575412,0.000415,120]
[423258979,1779999799000,-151.0,0.000415,120]
[423258977,1779999799000,-151.0,0.000415,120]
[423258978,1779999799000,-185.130712,0.000415,120]
[423258976,1779999799000,-285.631718,0.000415,120]
[423258975,1779999799000,-151.0,0.000415,120]
[423258974,1779999799000,-151.0,0.000415,120]
[423258973,1779999799000,-151.0,0.000415,120]
[423258982,1779999799000,-185.130712,0.000415,120]
[423258991,1779999799000,-151.0,0.000415,120]
[423259004,1779999799000,-171.088119,0.000415,120]
[423258993,1779999799000,-151.0,0.000415,120]
[423258992,1779999799000,-151.0,0.000415,120]
[423259010,1779999799000,-295.860613,0.000415,120]
[423259008,1779999799000,-151.0,0.000415,120]
[423259007,1779999799000,-295.860613,0.000415,120]
[423259005,1779999799000,-151.0,0.000415,120]
[423259006,1779999799000,-209.909389,0.000415,120]
[423259003,1779999799000,-295.860613,0.000415,120]
[423259011,1779999799000,-151.0,0.000415,120]
[423259009,1779999799000,-209.909389,0.000415,120]
[423259002,1779999799000,-209.909389,0.000415,120]
[423258999,1779999799000,-295.860613,0.000415,120]
[423259000,1779999799000,-151.0,0.000415,120]
[423258997,1779999799000,-172.241301,0.000415,120]
[423258996,1779999799000,-251.4388,0.000415,120]
[423258995,1779999799000,-151.0,0.000415,120]
[423258998,1779999799000,-151.0,0.000415,120]
[423258994,1779999799000,-1759.37,0.000415,30]
[423259001,1779999799000,-151.0,0.000415,120]
[423259026,1779999800000,-151.0,0.000415,120]
[423259024,1779999800000,-312.629572,0.000415,120]
[423259022,1779999800000,-312.629572,0.000415,120]
[423259021,1779999800000,-312.629572,0.000415,120]
[423259023,1779999800000,-312.629572,0.000415,120]
[423259020,1779999800000,-806.154465,0.000415,31]
[423259019,1779999800000,-806.154465,0.000415,31]
[423259016,1779999800000,-151.0,0.000415,120]
[423259015,1779999800000,-806.154465,0.000415,31]
[423259017,1779999800000,-806.154465,0.000415,31]
[423259012,1779999800000,-209.909389,0.000415,120]
[423259013,1779999800000,-151.0,0.000415,120]
[423259014,1779999800000,-151.0,0.000415,120]
[423259025,1779999800000,-151.0,0.000415,120]
[423259018,1779999800000,-151.0,0.000415,120]
[423259027,1779999800000,-151.0,0.000415,120]
[423259028,1779999800000,-2775.063421,0.000415,120]
[423259029,1779999800000,-151.0,0.000415,120]
[423259044,1779999800000,-3163.865892,0.000415,120]
[423259041,1779999800000,-3163.865892,0.000415,120]
[423259043,1779999800000,-151.0,0.000415,120]
[423259042,1779999800000,-2430.99673,0.000415,120]
[423259040,1779999800000,-151.0,0.000415,120]
[423259039,1779999800000,-504.477119,0.000415,30]
[423259037,1779999800000,-504.477119,0.000415,30]
[423259038,1779999800000,-2430.99673,0.000415,120]
[423259034,1779999800000,-2430.99673,0.000415,120]
[423259035,1779999800000,-504.477119,0.000415,30]
[423259033,1779999800000,-2775.063421,0.000415,120]
[423259030,1779999800000,-2775.063421,0.000415,120]
[423259031,1779999800000,-2775.063421,0.000415,120]
[423259032,1779999800000,-504.477119,0.000415,30]
[423259036,1779999800000,-2430.99673,0.000415,120]
[423259053,1779999801000,-151.0,0.000415,120]
[423259060,1779999801000,-151.0,0.000415,120]
[423259058,1779999801000,-823.472598,0.000415,120]
[423259057,1779999801000,-823.472598,0.000415,120]
[423259055,1779999801000,-719.725494,0.000415,30]
[423259056,1779999801000,-823.472598,0.000415,120]
[423259054,1779999801000,-719.725494,0.000415,30]
[423259047,1779999801000,-151.0,0.000415,120]
[423259052,1779999801000,-719.725494,0.000415,30]
[423259049,1779999801000,-151.0,0.000415,120]
[423259050,1779999801000,-719.725494,0.000415,30]
[423259048,1779999801000,-3163.865892,0.000415,120]
[423259045,1779999801000,-151.0,0.000415,120]